Workbook

Sheet GA 55A
A1: Office of the Principal DIET Kuchaman City (Nagaur)
A2: Salary and Deduction Detail for FY : 2021-22
A4: नाम कर्मचारी- | B4: Ashwini Kumar Sharma | E4: पद- | F4: Lecturer | I4: लेवल- | J4: L-12 | L4: Employee ID- | N4: RJNA201228008021 | R4: मार्च का बेसिक- | U4: 34800.00 | W4: TAN No. | X4: ABCD1234E
A5: पैन नं.- | B5: AAAA9456A | E5: Mobile- | F5: 9166023711 | I5: SI No.- | J5: 123456 | L5: GPF/PRAN No.- | N5: 12345678910 | R5: बैंक खाता सं.- | U5: 1234567891011 | X5: IS NPS | Y5: YES
A6: Month & Year | B6: Basic Pay | C6: DA | D6: HRA | E6: Washing Allow. | F6: Handicaped Allowance | G6: CCA Allowance | H6: Govt.- NPS | I6: Gross Salary | J6: SIP | K6: GPF | L6: Emp -NPS | M6: GPF Loan | N6: RPMF | O6: SI Loan | P6: GIS | Q6: LIC | R6: COVIS-19 | S6: GPF 2004 | T6: Hitkari Nidhi | U6: Govt.- NPS | V6: ITAX | W6: Total Deduction | X6: NET Payment | Y6: Bill No./ Dte
A7: 2021-03-01 | B7: =IF(U4="","",U4) -> 34,800 | C7: =ROUND(IF(B7="",0,B7*17%),0) -> 5,916 | D7: =ROUND(IF(B7="",0,B7*8%),0) -> 2,784 | E7: 0 | F7: 0 | G7: 0 | H7: =L7 -> 4,072 | I7: =SUM(B7:H7) -> 47,572 | J7: 3,000 | L7: =IF($Y$5="YES",ROUND((B7+C7)*0.1,0),0) -> 4,072 | M7: 0 | N7: =IF($Y$5="No",IF(B7<18001,265,IF(B7<33501,440,IF(B7<54001,658,875))),0) -> 0 | O7: 0 | Q7: 1,919 | U7: =L7 -> 4,072 | W7: =SUM(J7:V7) -> 13,063 | X7: =I7-W7 -> 34,509
A8: 2021-04-01 | B8: =B7 -> 34,800 | C8: =ROUND(IF(B8="",0,B8*17%),0) -> 5,916 | D8: =ROUND(IF(B8="",0,B8*8%),0) -> 2,784 | E8: =E7 -> 0 | F8: =F7 -> 0 | G8: =G7 -> 0 | H8: =L8 -> 4,072 | I8: 47,572 | J8: =J7 -> 3,000 | K8: =K7 -> 0 | L8: 4,072 | M8: =M7 -> 0 | N8: =IF($Y$5="No",IF(B8<18001,265,IF(B8<33501,440,IF(B8<54001,658,875))),0) -> 0 | O8: =O7 -> 0 | P8: 220 | Q8: =Q7 -> 1,919 | U8: =L8 -> 4,072 | V8: =V7 -> 0 | W8: 13,283 | X8: 34,289
A9: 2021-05-01 | B9: =B8 -> 34,800 | C9: =ROUND(IF(B9="",0,B9*17%),0) -> 5,916 | D9: =ROUND(IF(B9="",0,B9*8%),0) -> 2,784 | E9: 0 | F9: 0 | G9: 0 | H9: 4,072 | I9: 47,572 | J9: 3,000 | K9: 0 | L9: 4,072 | M9: 0 | N9: =IF($Y$5="No",IF(B9<18001,265,IF(B9<33501,440,IF(B9<54001,658,875))),0) -> 0 | O9: 0 | Q9: 1,919 | U9: 4,072 | V9: 0 | W9: 13,063 | X9: 34,509
A10: 2021-06-01 | B10: =B9 -> 34,800 | C10: =ROUND(IF(B10="",0,B10*17%),0) -> 5,916 | D10: =ROUND(IF(B10="",0,B10*8%),0) -> 2,784 | E10: 0 | F10: 0 | G10: 0 | H10: 4,072 | I10: 47,572 | J10: 3,000 | K10: 0 | L10: 4,072 | M10: 0 | N10: =IF($Y$5="No",IF(B10<18001,265,IF(B10<33501,440,IF(B10<54001,658,875))),0) -> 0 | O10: 0 | Q10: 1,919 | U10: 4,072 | V10: 0 | W10: 13,063 | X10: 34,509
A11: 2021-07-01 | B11: =MROUND(B10*1.03,100) -> 35,800 | C11: =ROUND(IF(B11="",0,B11*28%),0) -> 10,024 | D11: =ROUND(IF(B11="",0,B11*8%),0) -> 2,864 | E11: 0 | F11: 0 | G11: 0 | H11: 4,582 | I11: 53,270 | J11: 3,000 | K11: 0 | L11: 4,582 | M11: 0 | N11: =IF($Y$5="No",IF(B11<18001,265,IF(B11<33501,440,IF(B11<54001,658,875))),IF($Y$5="NO",0,IF(B11<18001,135,IF(B11<33501,220,IF(B11<54001,330,440))))) -> 330 | O11: 0 | Q11: 1,919 | U11: 4,582 | V11: 0 | W11: 14,413 | X11: 38,857 | AE11: =ROUND(B11*3%,0) -> 1074 | AF11: =ROUND(AE11*10%,0) -> 107 | AG11: =AE11-AF11 -> 967
A12: 2021-08-01 | B12: =B11 -> 35,800 | C12: =ROUND(IF(B12="",0,B12*28%),0) -> 10,024 | D12: =ROUND(IF(B12="",0,B12*9%),0) -> 3,222 | E12: 0 | F12: 0 | G12: 0 | H12: 4,582 | I12: 53,628 | J12: 3,000 | K12: 0 | L12: 4,582 | M12: 0 | N12: 330 | O12: 0 | Q12: 1,919 | U12: 4,582 | V12: 0 | W12: 14,413 | X12: 39,215 | AE12: =ROUND(B12*3%,0) -> 1074 | AF12: =ROUND(AE12*10%,0) -> 107 | AG12: =AE12-AF12 -> 967
A13: 2021-09-01 | B13: 35,800 | C13: =ROUND(IF(B13="",0,B13*28%),0) -> 10,024 | D13: 3,222 | E13: 0 | F13: 0 | G13: 0 | H13: 4,582 | I13: 53,628 | J13: 3,000 | K13: 0 | L13: 4,582 | M13: 0 | N13: 330 | O13: 0 | Q13: 1,919 | U13: 4,582 | V13: 0 | W13: 14,413 | X13: 39,215 | AE13: 1074 | AF13: 107 | AG13: 967
A14: 2021-10-01 | B14: 35,800 | C14: =ROUND(IF(B14="",0,B14*31%),0) -> 11,098 | D14: 3,222 | E14: 0 | F14: 0 | G14: 0 | H14: 4,690 | I14: 54,810 | J14: 3,000 | K14: 0 | L14: 4,690 | M14: 0 | N14: 330 | O14: 0 | Q14: 1,919 | U14: 4,690 | V14: 0 | W14: 14,629 | X14: 40,181
A15: 2021-11-01 | B15: 35,800 | C15: =ROUND(IF(B15="",0,B15*31%),0) -> 11,098 | D15: 3,222 | E15: 0 | F15: 0 | G15: 0 | H15: 4,690 | I15: 54,810 | J15: 3,000 | K15: 0 | L15: 4,690 | M15: 0 | N15: 330 | O15: 0 | Q15: 1,919 | U15: 4,690 | V15: 0 | W15: 14,629 | X15: 40,181
A16: 2021-12-01 | B16: 35,800 | C16: =ROUND(IF(B16="",0,B16*31%),0) -> 11,098 | D16: 3,222 | E16: 0 | F16: 0 | G16: 0 | H16: 4,690 | I16: 54,810 | J16: 3,000 | K16: 0 | L16: 4,690 | M16: 0 | N16: 330 | O16: 0 | Q16: 1,919 | T16: 250 | U16: 4,690 | V16: 0 | W16: 14,879 | X16: 39,931
A17: 2022-01-01 | B17: 35,800 | C17: =ROUND(IF(B17="",0,B17*31%),0) -> 11,098 | D17: 3,222 | E17: 0 | F17: 0 | G17: 0 | H17: 4,690 | I17: 54,810 | J17: 3,000 | K17: 0 | L17: 4,690 | M17: 0 | N17: 330 | O17: 0 | Q17: 1,919 | U17: 4,690 | V17: 0 | W17: 14,629 | X17: 40,181
A18: 2022-02-01 | B18: 35,800 | C18: =ROUND(IF(B18="",0,B18*31%),0) -> 11,098 | D18: 3,222 | E18: 0 | F18: 0 | G18: 0 | H18: 4,690 | I18: 54,810 | J18: 3,000 | K18: 0 | L18: 4,690 | M18: 0 | N18: 330 | O18: 0 | Q18: 1,919 | U18: 4,690 | V18: 0 | W18: 14,629 | X18: 40,181
A19: HRA Arrear July 2021 | D19: =ROUND(1%*B11,0) -> 358 | H19: =L19 -> 0 | I19: 358 | U19: 0 | W19: 0 | X19: 358
A20: Bonus | B20: 6,774 | H20: 0 | I20: 6,774 | K20: =IF($Y$5="No",ROUND($B$20*50%,0),0) -> 0 | S20: =IF($Y$5="YES",ROUND($B$20*50%,0),0) -> 3,387 | U20: 0 | W20: 3,387 | X20: 3,387
A21: Surrender | H21: 0 | I21: 0 | U21: 0 | W21: 0 | X21: 0
A22: DA Arrear | C22: =ROUND(B11*3%,0)*3 -> 3,222 | H22: 321 | I22: 3,543 | K22: =IF(Y5="NO",ROUND(B11*3%,0)*3,0) -> 0 | L22: =IF($Y$5="YES",SUM(AF11:AF13),0) -> 321 | S22: =IF(Y5="YES",SUM(AG11:AG13),0) -> 2,901 | U22: 321 | W22: 3,543 | X22: 0
A23: Fixation Arrear | H23: 0 | I23: 0 | L23: =IF($Y$5="YES",ROUND((B23+C23)*0.1,0),0) -> 0 | U23: 0 | W23: 0 | X23: 0
A24: March 2020 Due Salary | B24: 12,232 | H24: 1,223 | I24: 13,455 | L24: 1,223 | U24: 1,223 | W24: 2,446 | X24: 11,009
A25: Salary Arrear1 | H25: 0 | I25: 0 | L25: 0 | U25: 0 | W25: 0 | X25: 0
A26: Salary Arrear2 | H26: 0 | I26: 0 | L26: 0 | U26: 0 | W26: 0 | X26: 0
A27: Other | H27: 0 | I27: 0 | L27: 0 | U27: 0 | W27: 0 | X27: 0
A28: Total | B28: =SUM(B7:B27) -> 444,606 | C28: =SUM(C7:C27) -> 112,448 | D28: 36,912 | E28: 0 | F28: 0 | G28: 0 | H28: 55,028 | I28: 648,994 | J28: 36,000 | K28: 0 | L28: 55,028 | M28: 0 | N28: 2,640 | O28: 0 | P28: 220 | Q28: 23,028 | R28: 0 | S28: 6,288 | T28: 250 | U28: 55,028 | V28: 0 | W28: 178,482 | X28: 470,512
A31: Signature Of Employee | G31: Prepared By Ashwini Kumar : 9166023711 www.ashwinisharma.com | X31: Signature Of DDO

Sheet Tax Calculaton Old
A1: ='GA 55A'!A1 -> Office of the Principal DIET Kuchaman City (Nagaur)
A2: आयकर गणना प्रपत्र वर्ष 2021-22
A3: 1 | B3: नाम कर्मचारी | D3: =IF('GA 55A'!B4="","",'GA 55A'!B4) -> Ashwini Kumar Sharma | I3: पद | J3: =IF('GA 55A'!F4="","",'GA 55A'!F4) -> Lecturer | L3: पैन नं. | M3: =IF('GA 55A'!B5="","",'GA 55A'!B5) -> AAAA9456A
A4: 2 | B4: आय वर्ष 2020-21 में प्राप्त कुल वेतन - | M4: =IF('GA 55A'!I28="","",'GA 55A'!I28) -> 648994.00
A5: 3 | B5: गृह किराया, धारा 10 (13-A) के अंतर्गत एवं धारा 10 (14) के अंतर्गत अन्य भत्ते जो कर मुक्त है - | M5: 0.00
A6: 4 | B6: शेष (2-3) | M6: =M4-M5 -> 648994.00
A7: 5 | B7: (I)Standard Deduction Maxium 50000 धारा 16 (i a) | L7: =IF($M$6>50000,50000,$M$6) -> 50000.00
B8: (II)मनोरंजन भत्ता धारा 16 (ii) के अंतर्गत Maxium 5000 | L8: 0.00
B9: (III)वयवसाय कर धारा 16 (iii) के अंतर्गत | L9: 0.00
B10: योग 5 | M10: =SUM(L7:L9) -> 50000.00
A11: 6 | B11: शेष (4-5) | M11: =M6-M10 -> 598994.00
A12: 7 | B12: (अ) गृह सम्पति से आय (1) स्वयं के उपयोग में शून्य | H12: (2) प्राप्त किराया रूपये | K12: 0.00
B13: (ब) घटाइए | D13: किराये का 30% | F13: गृह ऋण पर ब्याज | H13: गृह कर | J13: योग 7 (ब)
D14: =ROUND($K$12*0.3,0) -> 0.00 | F14: 0.00 | H14: 0.00 | J14: =SUM(D14:I14) -> 0.00
B15: शेष - / + (7(अ) एवं 7 (ब) का) | M15: =$K$12-$J$14 -> 0.00
A16: 8 | B16: कुल शेष - / + (6 एवं 7) | M16: =$M$11+$M$15 -> 598994.00
A17: 9 | B17: अन्य आय | M17: 0.00
A18: 10 | B18: सकल आय (योग 8+9) | M18: =SUM(M16:M17) -> 598994.00
A19: 11 | B19: कटौतिया घटाइए - धारा US 80C, 80CCC, 80CCD(1)
B20: (A) अधिकतम सीमा 150000 (धारा 80CCE), धारा 80CCD(2) के अलावा
B21: 1 | C21: राज्य बीमा (SI) | F21: ='GA 55A'!$J$28 -> 36000.00 | H21: 11 | I21: EPEF (80CCD1) | L21: =IF('GA 55A'!$Y$5="Yes",'GA 55A'!L28-M33,0) -> 55028.00
B22: 2 | C22: LIC | F22: ='GA 55A'!Q28 -> 23028.00 | H22: 12 | I22: पेंशन प्लान हेतु अंशदान धारा (80CCC) | L22: 0.00
B23: 3 | C23: GPF / GPF 2004 | F23: ='GA 55A'!K28+'GA 55A'!S28 -> 6288.00 | H23: 13 | I23: राष्ट्रीय बचत पत्र पर ब्याज | L23: 0.00
B24: 4 | C24: राष्ट्रीय बचत पत्र (NSC) | F24: 0.00 | H24: 14 | I24: ट्यूशन फीस | L24: 0.00
B25: 5 | C25: लोक भविष्य निधि (PPF) | F25: 0.00 | H25: 15 | I25: इक्विटी लिंक सेविंग स्कीम | L25: 0.00
B26: 6 | C26: राष्ट्रीय बचत स्कीम (NSS) | F26: 0.00 | H26: 16 | I26: Defferred Annuty | L26: 0.00
B27: 7 | C27: GIS | F27: ='GA 55A'!P28 -> 220.00 | H27: 17 | I27: PLI | L27: 0.00
B28: 8 | C28: ULIP / वार्षिक प्लान | F28: 0.00 | H28: 18 | I28: धारा 80C के अंतर्गत अन्य जमा राशि | L28: 0.00
B29: 9 | C29: Home Loan Premium | F29: 0.00 | H29: 19 | I29: योग 1 से 18 तक | L29: =SUM(F21:G30,L21:L28) -> 120564.00
B30: 10 | C30: सुकन्या योजना में जमा | F30: 0.00
B31: अधिकतम कटौती राशि रूपए 150000 तक | M31: =IF($L$29<150001,ROUND($L$29,0),150000) -> 120564.00
B32: (B) | C32: घटाइए धारा 80CCD (2) नियोक्ता द्वारा पेंशन अंशदान की राशि (अधिकतम वेतन का 10%) | M32: =IF('GA 55A'!$Y$5="Yes",'GA 55A'!L28,0) -> 55028.00
B33: (C) | C33: घटाइए धारा 80CCD (1B)नवीन पेंशन योजना में अतिरिक्त अंशदान (अधिकतम रूपए 50000) | M33: 0.00
B34: योग 11 (A+B+C) | M34: =SUM(M31:M33) -> 175592.00
A35: 12 | B35: अन्य कटौतिया
B36: 1 | C36: धारा 80 D, चिकित्सा बीमा प्रीमियम (स्वयं,पति/पत्नी व बच्चों के लिए रू 25000, माता-पिता के लिए रू 25000,सीनियर सिटीजन रू 50000) | M36: ='GA 55A'!N28 -> 2640.00
B37: 2 | C37: धारा 80DD विकलांग आश्रितों के चिकित्सा उपचार (अधिकतम 75,000 तथा 80% या अधिक विकलांगता 125,000) | M37: 0.00
B38: 3 | C38: धारा 80 DB विशिष्ट रोंगों के उपचार हेतु कटौती (अधिकतम रू 40,000, सीनियर सिटीजन हेतु रू 100,000) | M38: 0.00
B39: 4 | C39: धारा 80 E उच्च शिक्षा हेतु लिए ऋण का ब्याज | M39: 0.00
B40: 5 | C40: धारा 80 G धर्मार्थ संस्थाओं आदि को दिये दान ( क श्रेणी में 100 प्रतिशत एवं ख श्रेणी में 50 प्रतिशत) | M40: 0.00
B41: 6 | C41: धारा 80 U स्थाई रूप से शारीरिक असमर्थतता की दशा में (अधिकतम 75,000 तथा अधिनियम 1995के अनुसार 125,000) | M41: 0.00
B42: 7 | C42: धारा 80 TTA बचत खाते पर ब्याज की अधिकतम छूट रू. 10,000 U/S 194(IA) | M42: 0.00
B43: 8 | C43: धारा 80 TTB वरिष्ठ नागरिकों को सभी प्रकार के ब्याज पर अधिकतम छूट- 50000 रू. U/S 194(A) | M43: 0.00
B44: 9 | C44: धारा 80 GGA अनुमोदित वैज्ञानिक, सामाजिक, ग्रामीण विकास आदि हेतु दिया गया दान | M44: 0.00
B45: योग 12 (1 to 9) | M45: =SUM(M36:M44) -> 2640.00
A46: 13 | B46: कुल कटौती (11+12) | M46: =SUM(M34,M45) -> 178232.00
A47: 14 | B47: कर योग्य आय (10-13) | M47: =$M$18-$M$46 -> 420762.00
A48: 15 | B48: कुल आय की राशि को सम्पूर्ण करना (दस के गुणक में) धारा 288 A | M48: =ROUND($M$47,-1) -> 420760.00
A49: 16 | B49: आयकर की गणना
B50: एक व्यक्ति कर दाता | F50: वरिष्ठ नागरिक (60 से 80 वर्ष) | J50: 80 वर्ष या अधिक आयु
B51: 250000 तक | E51: NIL | F51: 300000 तक | I51: NIL | M51: 0.00
B52: 250001 से 50000 तक | E52: 5% | F52: 300001 से 50000 तक | I52: 5% | J52: 50000 तक | L52: NIL | M52: =ROUND(IF(M48<250001,0,IF(M48>500000,12500,((M48-250000)*0.05))),0) -> 8538.00
B53: 500001 से 1000000 तक | E53: 20% | F53: 500001 से 1000000 तक | I53: 20% | J53: 500001 से 1000000 तक | L53: 20% | M53: =IF(M48<500001,0,IF(M48>1000000,100000,((M48-500000)*0.2))) -> 0.00
B54: 1000001 से अधिक | E54: 30% | F54: 1000001 से अधिक | I54: 30% | J54: 1000001 से अधिक | L54: 30% | M54: =IF(M48<1000001,0,((M48-1000000)*0.3)) -> 0.00
B55: 1 | C55: योग आयकर | M55: =SUM(M51:M54) -> 8538.00
B56: 2 | C56: छूट घारा 87(A) (2.50 लाख से 5 लाख तक की कर योग्य आय पर आयकर की छूट अधिकतम रू. 12500 तक) | M56: =IF(M48>500000,0,IF(M55<12501,M55,12500)) -> 8538.00
B57: 3 | C57: शेष आयकर (1-2) | M57: =M55-M56 -> 0.00
B58: 4 | C58: शिक्षा उपकर 2% एवं उच्च शिक्षा के लिए अधिभार 2% (योग 4%) | M58: =ROUND(M57*0.04,0) -> 0.00
B59: कुल आयकर (3+4) | M59: =SUM(M57:M58) -> 0.00
A60: 17 | B60: घटाइये :- राहत धारा 89 के तहत | M60: 0.00
A61: 18 | B61: कुल शेष आयकर | M61: =M59-M60 -> 0.00
A62: 19 | B62: आयकर कटौती का विवरण | D62: सितम्बर 2021 तक | F62: अक्टूबर से दिसम्बर 2021 तक | H62: जनवरी 2022 | J62: फ़रवरी 2022 | L62: टी.डी.एस. | M62: कुल टैक्स कटौती (योग कॉलम 19)
D63: =SUM('GA 55A'!V7:V13) -> 0.00 | F63: =SUM('GA 55A'!V14:V16) -> 0.00 | H63: =SUM('GA 55A'!V17) -> 0.00 | J63: =SUM('GA 55A'!V18) -> 0.00 | L63: =SUM('GA 55A'!$V$19:$V$27) -> 0.00 | M63: =SUM($D$63:$L$63) -> 0.00
A64: =IF(M61>M63,"Income Tax Payable",IF(M61<M63,"Income Tax Refundable","Income Tax No Need")) -> Income Tax No Need | M64: =M61-M63 -> 0.00
A66: Signature Of Employee | F66: Prepared By Ashwini Kumar : 9166023711 www.ashwinisharma.com | L66: Signature Of DDO

Sheet Tax Calculaton New
A1: ='Tax Calculaton Old'!A1 -> Office of the Principal DIET Kuchaman City (Nagaur)
A2: आयकर गणना प्रपत्र वर्ष 2021-22
A3: 1 | B3: नाम कर्मचारी | D3: ='Tax Calculaton Old'!D3 -> Ashwini Kumar Sharma | I3: पद | J3: ='Tax Calculaton Old'!J3 -> Lecturer | L3: पैन नं. | M3: ='Tax Calculaton Old'!M3 -> AAAA9456A
A4: 2 | B4: आय वर्ष 2020-21 में प्राप्त कुल वेतन - | M4: ='Tax Calculaton Old'!M4 -> 648994.00
A5: 3 | B5: गृह किराया, धारा 10 (13-A) के अंतर्गत एवं धारा 10 (14) के अंतर्गत अन्य भत्ते जो कर मुक्त है - | M5: ='Tax Calculaton Old'!M5 -> 0.00
A6: 4 | B6: शेष (2-3) | M6: =M4-M5 -> 648994.00
A7: 5 | B7: (I)Standard Deduction Maxium 50000 धारा 16 (i a) | L7: 0.00
B8: (II)मनोरंजन भत्ता धारा 16 (ii) के अंतर्गत Maxium 5000 | L8: ='Tax Calculaton Old'!L8 -> 0.00
B9: (III)वयवसाय कर धारा 16 (iii) के अंतर्गत | L9: ='Tax Calculaton Old'!L9 -> 0.00
B10: योग 5 | M10: =SUM(L7:L9) -> 0.00
A11: 6 | B11: शेष (4-5) | M11: =M6-M10 -> 648994.00
A12: 7 | B12: (अ) गृह सम्पति से आय (1) स्वयं के उपयोग में शून्य | H12: (2) प्राप्त किराया रूपये | K12: 0.00
B13: (ब) घटाइए | D13: किराये का 30% | F13: गृह ऋण पर ब्याज | H13: गृह कर | J13: योग 7 (ब)
D14: 0.00 | F14: 0.00 | H14: 0.00 | J14: =SUM(D14:I14) -> 0.00
B15: शेष - / + (7(अ) एवं 7 (ब) का) | M15: =$K$12+$J$14 -> 0.00
A16: 8 | B16: कुल शेष - / + (6 एवं 7) | M16: =$M$11-$M$15 -> 648994.00
A17: 9 | B17: अन्य आय | M17: ='Tax Calculaton Old'!M17 -> 0.00
A18: 10 | B18: सकल आय (योग 8+9) | M18: =SUM(M16:M17) -> 648994.00
A19: 11 | B19: कटौतिया घटाइए - धारा US 80C, 80CCC, 80CCD(1)
B20: (A) धारा US 80C, 80CCC, 80CCD(1) अधिकतम कटौती की राशि | M20: 0.00
B21: (B) धारा 80CCD(2) नियोक्ता द्वारा पेंशन अंशदान की राशि (अधिकतम वेतन का 10% पृथक से छूट) | M21: =IF('GA 55A'!$Y$5="Yes",'GA 55A'!L28,0) -> 55028.00
B22: (C) धारा 80CCD(1B) नवीन पेंशन योजना में अतिरिक्त अंशदान (अधिकतम रू. 50,000) | M22: ='Tax Calculaton Old'!M33 -> 0.00
B23: योग 11 (A+B+C) | M23: =SUM(M20:M22) -> 55028.00
A24: 12 | B24: अन्य कटौतिया
B25: 1 | C25: धारा 80 D, चिकित्सा बीमा प्रीमियम (स्वयं,पति/पत्नी व बच्चों के लिए रू 25000, माता-पिता के लिए रू 25000,सीनियर सिटीजन रू 50000) | M25: 0.00
B26: 2 | C26: धारा 80DD विकलांग आश्रितों के चिकित्सा उपचार (अधिकतम 75,000 तथा 80ः या अधिक विकलांगता 125,000) | M26: 0.00
B27: 3 | C27: धारा 80 DB विशिष्ट रोंगों के उपचार हेतु कटौती (अधिकतम रू 40,000, सीनियर सिटीजन हेतु रू 100,000) | M27: 0.00
B28: 4 | C28: धारा 80 E उच्च शिक्षा हेतु लिए ऋण का ब्याज | M28: 0.00
B29: 5 | C29: धारा 80 G धर्मार्थ संस्थाओं आदि को दिये दान ( क श्रेणी में 100 प्रतिशत एवं ख श्रेणी में 50 प्रतिशत) | M29: 0.00
B30: 6 | C30: धारा 80 U स्थाई रूप से शारीरिक असमर्थतता की दशा में (अधिकतम 75,000 तथा अधिनियम 1995के अनुसार 125,000) | M30: 0.00
B31: 7 | C31: धारा 80 TTA बचत खाते पर ब्याज की अधिकतम छूट रू. 10,000 U/S 194(IA) | M31: 0.00
B32: 8 | C32: धारा 80 TTB वरिष्ठ नागरिकों को सभी प्रकार के ब्याज पर अधिकतम छूट- 50000 रू. U/S 194(A) | M32: 0.00
B33: 9 | C33: धारा 80 GGA अनुमोदित वैज्ञानिक, सामाजिक, ग्रामीण विकास आदि हेतु दिया गया दान | M33: 0.00
B34: योग 12 (1 to 9) | M34: =SUM(M25:M33) -> 0.00
A35: 13 | B35: कुल कटौती (11+12) | M35: =SUM($M$23+$M$34) -> 55028.00
A36: 14 | B36: कर योग्य आय (10-13) | M36: =$M$18-$M$35 -> 593966.00
A37: 15 | B37: कुल आय की राशि को सम्पूर्ण करना (दस के गुणक में) धारा 288 A | M37: =ROUND($M$36,-1) -> 593970.00
A38: 16 | B38: आयकर की गणना
B39: एक व्यक्ति कर दाता | F39: वरिष्ठ नागरिक (60 से 80 वर्ष) | J39: 80 वर्ष या अधिक आयु
B40: 250000 तक | E40: NIL | F40: 300000 तक | I40: NIL | L40: NIL | M40: 0.00
B41: 250001 से 500000 तक | E41: 5% | F41: 300001 से 500000 तक | I41: 5% | J41: 50000 तक | L41: 5% | M41: =ROUND(IF(M37<250001,0,IF(M37>500000,12500,((M37-250000)*0.05))),0) -> 12500.00
B42: 500001 से 750000 तक | E42: 10% | F42: 500001 से 750000 तक | I42: 10% | J42: 500001 से 1000000 तक | L42: 10% | M42: =ROUND(IF(M37<500001,0,IF(M37>750000,25000,((M37-500000)*0.1))),0) -> 9397.00
B43: 750001 से 1000000 तक | E43: 15% | F43: 750001 से 1000000 तक | I43: 15% | J43: 1000001 से अधिक | L43: 15% | M43: =ROUND(IF(M37<750001,0,IF(M37>1000000,37500,((M37-750000)*0.15))),0) -> 0.00
B44: 1000001 से 1250000 तक | E44: 20% | F44: 1000001 से 1250000 तक | I44: 20% | J44: 1000001 से अधिक | L44: 20% | M44: =ROUND(IF(M37<1000001,0,IF(M37>1250000,50000,((M37-1000000)*0.2))),0) -> 0.00
B45: 1250000 से 1500000 तक | E45: 25% | F45: 1250000 से 1500000 तक | I45: 25% | J45: 1000001 से अधिक | L45: 25% | M45: =ROUND(IF(M37<1250001,0,IF(M37>1500000,62500,((M37-1250000)*0.25))),0) -> 0.00
B46: 1500000 से अधिक | E46: 30% | F46: 1500000 से अधिक | I46: 30% | J46: 1500000 से अधिक | L46: 30% | M46: =ROUND(IF(M37<1500001,0,(M37-1500000)*0.3),0) -> 0.00
B47: 1 | C47: योग आयकर | M47: =SUM(M40:M46) -> 21897.00
B48: 2 | C48: छूट घारा 87(A) (2.50 लाख से 5 लाख तक की कर योग्य आय पर आयकर की छूट अधिकतम रू. 12500 तक) | M48: =IF(M37>500000,0,IF(M47<12501,M47,12500)) -> 0.00
B49: 3 | C49: शेष आयकर (1-2) | M49: =M47-M48 -> 21897.00
B50: 4 | C50: शिक्षा उपकर 2% एवं उच्च शिक्षा के लिए अधिभार 2% (योग 4%) | M50: =ROUND(M49*0.04,0) -> 876.00
B51: कुल आयकर (3+4) | M51: =SUM(M49:M50) -> 22773.00
A52: 17 | B52: घटाइये :- राहत धारा 89 के तहत | M52: ='Tax Calculaton Old'!M60 -> 0.00
A53: 18 | B53: कुल शेष आयकर | M53: =M51-M52 -> 22773.00
A54: 19 | B54: आयकर कटौती का विवरण | D54: सितम्बर 2021 तक | F54: अक्टूबर से दिसम्बर 2021 तक | H54: जनवरी 2022 | J54: फ़रवरी 2022 | L54: टी.डी.एस. | M54: कुल टैक्स कटौती (योग कॉलम 19)
D55: =SUM('GA 55A'!V7:V13) -> 0.00 | F55: =SUM('GA 55A'!V14:V16) -> 0.00 | H55: =SUM('GA 55A'!V17) -> 0.00 | J55: =SUM('GA 55A'!V18) -> 0.00 | L55: =SUM('GA 55A'!$V$19:$V$27) -> 0.00 | M55: =SUM(D55:L55) -> 0.00
A56: =IF(M53>M55,"Income Tax Payable",IF(M53<M55,"Income Tax Refundable","Income Tax No Need")) -> Income Tax Payable | M56: =M53-M55 -> 22773.00
A58: Signature Of Employee | L58: Signature Of DDO

Sheet Summary
A1: ='GA 55A'!A1 -> Office of the Principal DIET Kuchaman City (Nagaur)
A3: Name Of Employee | B3: ='GA 55A'!B4 -> Ashwini Kumar Sharma
A5: Gross Pay | B5: Taxable Amt | C5: Tax Deposit | D5: Rebate Under Section 80C, 80CCC, 80CCD(1) | E5: मकान किराया छूट के लिए रसीद की आवश्यकता
A6: ='Tax Calculaton Old'!$M$4 -> 648994.00 | B6: ='Tax Calculaton Old'!M48 -> 420760.00 | C6: ='Tax Calculaton Old'!M63 -> 0.00 | D6: ='Tax Calculaton Old'!M31 -> 120564.00 | E6: =IF(I6=0,0,ROUND(0.1*H6,0)+I6) -> 90395.00 | H6: =SUM('GA 55A'!B7:C18) -> 534,826 | I6: ='GA 55A'!D28 -> 36,912
A8: TAX Position (Old Tax Scheme) | C8: ='Tax Calculaton Old'!A64&" = "&'Tax Calculaton Old'!M64 -> Income Tax No Need = 0
A9: TAX Position (New Tax Scheme) | C9: ='Tax Calculaton New'!A56&" = "&'Tax Calculaton New'!M56 -> Income Tax Payable = 22773
A10: Total Rebate Under Section 80C, 80CCC, 80CCD(1) | C10: ='Tax Calculaton Old'!M31 -> 120564.00
A11: Investable Amount | C11: =150000-C10 -> 29436.00
